Cogmind - Beta 13 @@@ ROGUE MODE // 2024.04.03 @ 11:50:49 Player: Ehseezed Result: Destroyed by G-47 Trooper with Particle Gun Performance ------------- Evolutions (2) 1000 Regions Visited (3) 600 Robots Destroyed (53) 265 Value Destroyed (1693) 1693 Prototype IDs (2) 40 Alien Tech Used (0) 0 Bonus (0) 0 TOTAL SCORE: 3598 Bonus ------- None Cogmind --------- Core Integrity 0/550 Matter 273/300 Energy 99/100 System Corruption 2% Temperature Cool (9) Movement Core (150) Ox2 Location -8/Materials Parts ------- > --- POWER (2) -------- (None) > --- PROPULSION (3) --- (None) > --- UTILITY (3) ------ Transport Network Coupler Improved Light Armor Plating > --- WEAPON (3) ------- Field Laser Concussive RPG > --- INVENTORY (5) ---- Machine Analyzer Hardlight Generator System Shield System Shield Peak State ------------ > --- POWER ------------ Backup Power I Light Nuclear Core > --- PROPULSION ------- Aluminum Leg Backup Propulsion I > --- UTILITY ---------- Signal Interpreter Transport Network Coupler Melee Analysis Suite > --- WEAPON ----------- Particle Cannon Proton Missile Launcher Flail > --- INVENTORY -------- Machine Analyzer Improved Light Armor Plating System Shield Heavy EM Shotgun Lightning Gun [Rating: 20] Favorites ----------- Power Ion Engine Engine Ion Engine Power Core Light Nuclear Core Propulsion Compact Wheel Treads Improved Treads Leg Aluminum Leg Wheel Compact Wheel Hover Unit Backup Propulsion I Utility Signal Interpreter Device Heat Sink Processor Signal Interpreter Protection Light Armor Plating Weapon Assault Rifle Energy Gun Small Laser Energy Cannon Particle Cannon Ballistic Gun Assault Rifle Ballistic Cannon Light Cannon Launcher Rocket Launcher Special Weapon Plasma Cutter Impact Weapon Heavy Hammer Build | -11 -10 -9 -8 ------- Run | Yrd Mat Mat Mat Slots Evolved 4 | . . 2 2 Power 1 | . . . 1 Propulsion 1 | . . . 1 Utility 1 | . . 1 . Weapon 1 | . . 1 . Parts Attached 43 | 7 7 16 13 Power 4 | 1 1 1 1 Engine 3 | 1 1 1 . Core 1 | . . . 1 Reactor . | . . . . Propulsion 10 | 4 1 3 2 Treads 3 | . . 2 1 Leg 4 | 2 . 1 1 Wheel 3 | 2 1 . . Hover . | . . . . Flight . | . . . . Utility 9 | . 4 3 2 Device 1 | . 1 . . Storage . | . . . . Processor 4 | . 2 2 . Hackware . | . . . . Protection 4 | . 1 1 2 Artifact . | . . . . Weapon 20 | 2 1 9 8 Energy Gun 6 | 1 . 1 4 Energy Cannon 2 | . . 1 1 Ballistic Gun 5 | 1 . 3 1 Ballistic Cannon 1 | . 1 . . Launcher 3 | . . 1 2 Special Weapon 1 | . . 1 . Impact Weapon 2 | . . 2 . Slashing Weapon . | . . . . Piercing Weapon . | . . . . Special Melee Weapon . | . . . . Unidentified Prototypes 2 | . . 1 1 Parts Lost 26 | . . 11 15 Power 4 | . . 2 2 Propulsion 6 | . . 3 3 Utility 3 | . . 2 1 Weapon 13 | . . 4 9 Highest Loss Streak 5 | . . 3 5 To Critical Strikes . | . . . . Average Slot Usage (%) 82 | . 95 84 65 Engine 7 | . 14 6 2 Core 1 | . . . 3 Treads 4 | . . 8 2 Leg 3 | . . 3 6 Wheel 8 | . 28 2 . Device 1 | . 4 . . Processor 24 | . 13 30 25 Protection 3 | . 6 2 . Energy Gun 1 | . . . 4 Energy Cannon 2 | . . 1 6 Ballistic Gun 9 | . 14 10 2 Ballistic Cannon 3 | . 13 . . Launcher 3 | . . 6 2 Impact Weapon 6 | . . 10 6 Naked Turns . | . . . . Heaviest Build 19 | 8 14 17 19 Greatest Support 46 | 26 32 46 23 Greatest Overweight (x) 3 | . . 3 3 Average Overweight (x) . | . . . . Largest Inventory Capacity 5 | 5 5 5 5 Average Capacity 5 | 5 5 5 5 Most Carried 5 | 5 5 5 5 Average Carried 3 | 2 4 4 4 Final Capacity 5 | 5 5 5 5 Final Carried 5 | 3 5 4 4 Class Distribution -------------------- 99% | Mutant Dominant Class ---------------- Mutant | -10/Materials Mutant | -9/Materials Mutant | -8/Materials Resources | -11 -10 -9 -8 ----------- Run | Yrd Mat Mat Mat Matter Collected 1146 | 101 469 438 138 Remotely . | . . . . Salvage Created 1842 | . 343 863 636 Parts 89 | . 20 45 24 Haulers Intercepted 1 | . 1 . . Recyclers Shooed . | . . . . Parts Field Recycled . | . . . . Retrieved Matter . | . . . . Parts Self-Destructed . | . . . . Prevented . | . . . . Kills | -11 -10 -9 -8 ------- Run | Yrd Mat Mat Mat Combat Hostiles Destroyed 42 | . 8 21 13 Melee 8 | . . 7 1 Guns 12 | . 4 5 3 Cannons 13 | . 4 1 8 AOE 3 | . . 3 . Classes Destroyed 10 | . 5 4 1 Worker 1 | . . 1 . Builder 1 | . . 1 . Hauler 1 | . 1 . . Recycler 2 | . 1 1 . Watcher 6 | . 2 4 . Swarmer 6 | . 2 4 . Cutter 1 | . . . 1 Grunt 26 | . 6 11 9 Duelist 1 | . . 1 . Sentry 8 | . . 5 3 Best Kill Streak 8 | . 3 8 3 Combat Bots Only 7 | . 2 7 3 Max Kills in Single Turn 5 | . 1 5 1 Gunslinging . | . . . . Exploded 2 | . . 2 . Melee 1 | . . 1 1 Uniques/NPCs Destroyed . | . . . . Combat | -11 -10 -9 -8 -------- Run | Yrd Mat Mat Mat Hostile Shots Fired 318 | . 55 118 145 Missed 79 | . 16 23 40 Damage Taken 3531 | . 410 1226 1895 Core 972 | . 85 327 560 Absorbed by Shields . | . . . . Core Remaining (%) 61 | 100 66 18 . Volleys Fired 113 | . 41 35 37 Largest 3 | . 2 2 3 Hottest 138 | . 55 56 138 Shots Fired 202 | . 82 52 68 Gun 115 | . 41 37 37 Cannon 67 | . 41 . 26 Launcher 16 | . . 11 5 Special 4 | . . 4 . Kinetic 129 | . 82 37 10 Thermal 43 | . . 4 39 Explosive 11 | . . 11 . Electromagnetic 19 | . . . 19 Robot Hit Streak 11 | . 11 8 8 Robot Miss Streak 7 | . 6 7 3 Penetration Max . | . . . . Secondary Targets . | . . . . Shots Hit Robots 150 | . 42 57 51 Core Hits 65 | . 17 25 23 Critical Kills 2 | . . 2 . Critical Parts Destroyed 7 | . . 6 1 Critical Strikes 11 | . 1 9 1 Blast 1 | . 1 . . Smash 10 | . . 9 1 Melee Attacks 54 | . . 38 16 Impact 54 | . . 38 16 Slashing . | . . . . Piercing . | . . . . Sneak Attacks 2 | . . 1 1 Combat Hostiles 1 | . . . 1 Follow-up Attacks . | . . . . Damage Inflicted 3718 | . 670 1802 1246 Guns 1109 | . 283 358 468 Cannons 715 | . 387 . 328 Explosions 436 | . . 359 77 Melee 1438 | . . 1065 373 Ramming . | . . . . Kinetic 1169 | . 670 358 141 Thermal 538 | . . 20 518 Explosive 359 | . . 359 . Electromagnetic 214 | . . . 214 Impact 1438 | . . 1065 373 Slashing . | . . . . Piercing . | . . . . Highest Corruption 3 | . 3 3 2 Average Corruption 2 | . 2 2 2 Corruption Purged . | . . . . Corruption Blocked . | . . . . Effects 22 | . 18 1 3 Message Errors 6 | . 5 . 1 Matter Fused 7 | . 6 . 1 Heat Flow Errors 3 | . 2 1 . Energy Discharges 4 | . 4 . . Data Loss (minor) 2 | . 1 . 1 Overload Shots . | . . . . Overflow Damage 478 | . . 402 76 Projectiles . | . . . . Explosions . | . . . . Melee 478 | . . 402 76 Knockbacks 10 | . 7 2 1 Impact 3 | . . 2 1 Kinetic 7 | . 7 . . Secondary . | . . . . Self-Inflicted Damage 165 | . . 128 37 Shots 7 | . . 4 3 Rammed . | . . . . Targets Rammed . | . . . . Kicked . | . . . . Crushed . | . . . . Highest Temperature 361 | . 269 163 361 Average Temperature 69 | . 55 36 82 Received Heat Transfer 1419 | . 162 402 855 Effects 4 | . . . 4 Shutdowns 1 | . . . 1 Interference 3 | . . . 3 Siege Activations . | . . . . Robots Corrupted . | . . . . Combat Hostiles . | . . . . Parts Fried 13 | . . 13 . Impact Corruptions 19 | . . 14 5 Robots Melted . | . . . . Combat Hostiles . | . . . . Parts Melted 1 | . . . 1 Heat Transferred 1073 | . . 74 999 Parts Sabotaged . | . . . . Parts Stolen . | . . . . Parts Stripped . | . . . . Power Chain Reactions 1 | . . 1 . Alert | -11 -10 -9 -8 ------- Run | Yrd Mat Mat Mat Peak Influence 320 | . 189 320 304 Initial 98 | . . 21 98 Average 75 | . 71 151 147 Maximum Alert Level 1 | . . 1 1 Low Security (%) 94 | 100 100 84 88 Level 1 5 | . . 15 11 Level 2 . | . . . . Level 3 . | . . . . Level 4 . | . . . . Level 5 . | . . . . High Security . | . . . . Max Security . | . . . . Squads Dispatched 7 | . 2 1 4 Investigation 1 | . . . 1 Extermination . | . . . . Reinforcement 6 | . 2 1 3 Assault . | . . . . Garrison . | . . . . Intercept . | . . . . Searches Triggered . | . . . . Construction Impeded . | . . . . Haulers Reinforced . | . . . . Active Scanning Responses . | . . . . Cargo Convoy Interrupts . | . . . . Stealth | -11 -10 -9 -8 --------- Run | Yrd Mat Mat Mat Distress Signals 6 | . 1 3 2 Communications Jammed . | . . . . Distress Signals . | . . . . Times Spotted 71 | . 16 30 25 Peak Tracking Total 8 | . 5 8 5 Tactical Retreats 5 | . . 2 3 Traps | -11 -10 -9 -8 ------- Run | Yrd Mat Mat Mat Traps Triggered 6 | . 2 2 2 Indirectly . | . . . . Trap Hack Attempts . | . . . . Triggered . | . . . . Disarmed . | . . . . Reprogrammed . | . . . . Reused . | . . . . Traps Extracted . | . . . . Installed . | . . . . Triggered . | . . . . Machines | -11 -10 -9 -8 ---------- Run | Yrd Mat Mat Mat Machines Disabled 5 | . . 3 2 Max in Single Turn 1 | . . 1 1 Machines Repaired . | . . . . Machines Dismantled 1 | . . 1 . Machines Sabotaged . | . . . . Overloaded Fab Kills . | . . . . Hacking | -11 -10 -9 -8 --------- Run | Yrd Mat Mat Mat Machines Accessed 3 | . . 2 1 Terminals 1 | . . 1 . Fabricators . | . . . . Repair Stations 1 | . . . 1 Recycling Units 1 | . . 1 . Scanalyzers . | . . . . Garrison Access . | . . . . Total Hacks 5 | . . 4 1 Successful 3 | . . 2 1 Failed 2 | . . 2 . Catastrophic . | . . . . Database Lockouts . | . . . . Manual . | . . . . Terminals 2 | . . 2 . Fabricators . | . . . . Repair Stations 1 | . . . 1 Recycling Units 2 | . . 2 . Scanalyzers . | . . . . Garrison Access . | . . . . Terminal Hacks . | . . . . Fabricator Hacks . | . . . . Repair Station Hacks 1 | . . . 1 Refit 1 | . . . 1 Recycling Unit Hacks 2 | . . 2 . Process 1 | . . 1 . Report Inventory 1 | . . 1 . Scanalyzer . | . . . . Garrison Access Hacks . | . . . . Unauthorized Hacks . | . . . . Terminals . | . . . . Fabricators . | . . . . Repair Stations . | . . . . Recycling Units . | . . . . Scanalyzers . | . . . . Garrison Access . | . . . . Data Cores Recovered . | . . . . Used . | . . . . Hacking Detections 1 | . . 1 . Full Trace Events . | . . . . Feedback Events . | . . . . Feedback Blocked . | . . . . Robot Schematics Acquired . | . . . . Robots Built . | . . . . Authchips . | . . . . Time . | . . . . Total Robot Build Rating . | . . . . Part Schematics Acquired . | . . . . Parts Built . | . . . . Authchips . | . . . . Time . | . . . . Total Part Build Rating . | . . . . Parts Repaired . | . . . . Time . | . . . . Parts Recycled . | . . . . Recycled Matter 172 | . . 172 . Retrieved Matter . | . . . . Retrieved Components . | . . . . Parts Scanalyzed . | . . . . Part Schematics Acquired . | . . . . Parts Damaged . | . . . . Bothacking | -11 -10 -9 -8 ------------ Run | Yrd Mat Mat Mat Used RIF Installer . | . . . . Robots Hacked . | . . . . Non-combat . | . . . . Combat . | . . . . Robot Hacks Applied . | . . . . Relay Couplers Released . | . . . . Fabnet Peak Effective % . | . . . . Robots Rewired . | . . . . Allies Hacked . | . . . . Hacks Repelled . | . . . . Allies | -11 -10 -9 -8 -------- Run | Yrd Mat Mat Mat Total Allies . | . . . . Largest Group . | . . . . Highest-Rated Group . | . . . . Highest-Rated Ally . | . . . . Total Orders . | . . . . Ally Attacks . | . . . . Total Damage . | . . . . Kills . | . . . . Allies Corrupted . | . . . . Allies Melted . | . . . . Intel | -11 -10 -9 -8 ------- Run | Yrd Mat Mat Mat Robot Analysis Total . | . . . . Derelict Logs Recovered . | . . . . Drone Launches . | . . . . Drone Recoveries . | . . . . Exploration | -11 -10 -9 -8 ------------- Run | Yrd Mat Mat Mat Turns Passed 5807 | 2420 912 1565 910 Spaces Moved 2331 | 332 816 806 377 Core 206 | 16 . 75 115 Treads 475 | . . 365 110 Legs 398 | . . 246 152 Wheels 1252 | 316 816 120 . Hover . | . . . . Flight . | . . . . Fastest Speed 50 | 50 90 50 50 Average Speed 124 | 88 93 157 155 Slowest Speed 200 | 90 100 200 200 Overloaded Moves . | . . . . Propulsion Burnouts . | . . . . Robots Hopped . | . . . . Cave-ins Triggered . | . . . . Exploration Rate (%) 56 | 27 93 64 41 Regions Visited 3 Branch Regions . Pre-discovered Areas . | . . . . Known Exits Taken 2 | . 1 1 . Unknown Exits Taken 1 | 1 . . . Scrap Searched . | . . . . Spaces Dug . | . . . . Terrain Destroyed 100 | . . 100 . Melee . | . . . . Projectile . | . . . . AOE 100 | . . 100 . Terrain Rammed . | . . . . Walls Destroyed . | . . . . Machines Disabled . | . . . . Actions | -11 -10 -9 -8 --------- Run | Yrd Mat Mat Mat Total 4934 | 2460 886 970 618 Wait 2304 | 2110 6 39 149 Move 2328 | 331 815 805 377 Hop . | . . . . Pick Up 60 | 10 10 21 19 Fast Attach . | . . . . Attach 36 | 7 4 13 12 Detach . | . . . . Swap 7 | . 3 3 1 Drop 26 | 2 6 11 7 Fire 113 | . 41 35 37 Melee 54 | . . 38 16 Ram . | . . . . Kick . | . . . . Crush . | . . . . Escape Stasis . | . . . . Rewire 1 | . 1 . . Trap . | . . . . Miscellaneous 5 | . . 5 . Route ------- -11/Scrapyard -10/Materials (discovered 5 exits: *Mat x3 / *Min x2) -9/Materials (discovered 2 exits: *Mat x2) -8/Materials (discovered 1 exit: [*Sto]) History --------- Turn | Location | Event 7 | -11/Scrapyard | Discovered new exit (range 15) 2421 | -11/Scrapyard | Entered Materials 2422 | -10/Materials | Build established: Mutant 2432 | -10/Materials | Discovered new exit (range 13) 2579 | -10/Materials | Discovered new exit (range 14) 2781 | -10/Materials | Discovered new exit (range 5) 2802 | -10/Materials | Discovered new exit (range 16) 2895 | -10/Materials | Identified exit to Materials 2990 | -10/Materials | Identified exit to Mines 3282 | -10/Materials | Discovered exit to Materials (range 3) 3333 | -10/Materials | Entered another Materials area 3333 | -9/Materials | Evolved 2 slots: Utility x1, Weapon x1 3546 | -9/Materials | Lost 3 parts (1p2n) 3699 | -9/Materials | Core integrity fell below 50% 3741 | -9/Materials | Destroyed 7 combat bots 4366 | -9/Materials | Discovered new exit (range 4) 4370 | -9/Materials | Identified exit to Materials 4627 | -9/Materials | Discovered exit to Materials (range 9) 4806 | -9/Materials | Core integrity fell below 20% 4898 | -9/Materials | Entered another Materials area 4898 | -8/Materials | Evolved 2 slots: Power x1, Propulsion x1 5053 | -8/Materials | Lost 3 parts (1n2w) 5059 | -8/Materials | Discovered new exit (range 15) 5612 | -8/Materials | Core integrity fell below 50% 5675 | -8/Materials | Lost 5 parts (2n3w) 5727 | -8/Materials | Core integrity fell below 20% 5808 | -8/Materials | Destroyed by G-47 Trooper with Particle Gun Last Messages --------------- 05749_ Acquired Field Laser. 05750_ K-01 Serf cleans the Garrison Access. 05751_ Imp. Light Armor Plating severed. 05755_ C-17 Slicer destroyed. 05757_ Acquired 25 matter. 05758_ Acquired Imp. Light Armor Plating. 05760_ K-01 Serf collects debris. 05761_ R-06 Scavenger collects Reaction Control System. 05762_ Acquired Concussive RPG. 05765_ R-06 Scavenger collects Surge Thruster. 05783_ Connecting with Terminal... 05798_ K-01 Serf cleans the Garrison Access. 05804_ T-07 Excavator is excavating. 05806_ K-01 Serf cleans the Garrison Access. 05808_ T-07 Excavator is excavating. 05808_ Triggered Alarm Trap. 05808_ An alarm sounds. 05808_ ALERT: Alarm triggered, dispatching investigation squad. Map ----- +----------------------------------------------------+ | ???# + #??# !!!=[# | | ???#########+########%####### ### | | ??????# #???###?????# ## | | ??????# % #???????????# ] [!!##" | | ??????# ! #???????????#]][[!!##" | | ??????# #???????????#########" | | ??????# #???????????????????# | | ??????# "T" #???????????????????# | | ??????# """ #???????????????????## | | ?????# #????????????????????# | | ?????############?????????############ | | ??????????????????????????# + | | ??????????????????????????# # ^ | | ??????????????????????????# # | | ??????????????????????????######### | | ????????????????###########???????#^ | | ????????????????# ! #???#####+## | | ????????????????# "#???# [ + | | ????????????????# """ T#???# ! # | | ????????????????# """"" "#???#[ %/ | | ????????????????# """"" #???#[[ # | | ????????????????# """"" #???#[ ! # | | ????????????????# """ #???# %# | | ????????????????# #???######## | | ???????????###########+###########???# | | ???????????# @ ! #???# | | ???????????+ #???# | | ???????????# k #???? | | ???????????# g """ #### #???? | | ???????????# "g" """ ####+##+###?? | | ?????????? "G" """ ## ?? | | ???????? """ # %""" """?? | | ???????+ k + """ """?? | | ???????# u # """ """ " | | ???????# ### #### ## | | ???????# #### #?#+#??#+###"######### | | ???????# ???# ??? ?????# % ## | | ??????? ????# ???""?????# = ## | | ????????????? ????""?????# ## | | ????????????? ???????????# ## | | ????????????? ???????????# ## | | ??????????????????????????# ## | | ??????????????????????????# ## | | ??????????????????????????# "# | | ??????????????????###############+### | | ????????????????? % | | ????????????????? | | ????????????????? a | | ??????????????????###############+### | | ??????????????????????????????# ## | +----------------------------------------------------+ Best States ------------- Heat Dissipation 35 Energy Generation 18 Energy Capacity 265 Matter Stores 300 Matter Capacity 300 Sight Range 16 Terrain Scan Density 10 Armor Coverage 150 Evasion (%) 55 Targeting Accuracy 5 Melee Accuracy 5 Recoil Reduction 2 Item Schematics ----------------- None Robot Schematics ------------------ None Fabricated ------------ Nothing Alien Tech Used ----------------- None Achievements -------------- None Challenges ------------ None Game ------ Seed ThiefDecoyProjector Manual? 0 Play Time 00:48:16 Cumulative 3.7 hours Start 2024.04.03 @ 10:53:39 End 2024.04.03 @ 11:50:49 Sessions 1 Manual Loads 0 Difficulty Rogue Special Mode None Game No. 6 Rogue 6 Adventurer 0 Explorer 0 Win Type - Total 0 Types 0/0/0/0/0/0/0/0/0 Lore% 7 Gallery% 8 Achievement% 9 Wizard Run 0 Options --------- Layout 1 ASCII 0 Keyboard 0 Movement Numpad Keybinds 0 Fullscreen 1 Font 24/Smallcaps Map View 50x35 Zoom Use 0% Tactical HUD 1 Map Filters NONE Filters NONE Steam 1 RUN: 66195c49-b283-4089-9ecb-f0d9c4c3ff4f